[Event "Titled Tuesday Blitz June 13 Early 2023"]
[White "Brunner, Nicolas"]
[Black "Kucuksari, Kaan"]
[WhiteFideId "620246"]
[BlackFideId "6380166"]
[WhiteElo "2319"]
[BlackElo "2364"]
[Result "0-1"]
[Round "6"]
[TimeControl "180+2"]
[Date "2023.06.13"]
[WhiteClock "0:00:08"]
[BlackClock "0:00:39"]
[Board "71"]

1. Nf3 {[%clk 0:03:00]}  g6 {[%clk 0:02:58]} 2. g3 {[%clk 0:03:00]}  Bg7 {[%clk 0:02:59]} 3. d4 {[%clk 0:03:00]}  b6 {[%clk 0:02:55]} 4. Bg2 {[%clk 0:03:00]}  Bb7 {[%clk 0:02:56]} 5. O-O {[%clk 0:03:00]}  Nf6 {[%clk 0:02:55]} 6. c4 {[%clk 0:02:59]}  O-O {[%clk 0:02:55]} 7. Nc3 {[%clk 0:03:00]}  Ne4 {[%clk 0:02:55]} 8. Bd2 {[%clk 0:03:00]}  Nxd2 {[%clk 0:02:54]} 9. Qxd2 {[%clk 0:03:00]}  d6 {[%clk 0:02:50]} 10. e4 {[%clk 0:02:59]}  c5 {[%clk 0:02:49]} 11. d5 {[%clk 0:02:59]}  Nd7 {[%clk 0:02:49]} 12. Ne1 {[%clk 0:02:37]}  a6 {[%clk 0:02:41]} 13. a4 {[%clk 0:02:35]}  b5 {[%clk 0:02:27]} 14. cxb5 {[%clk 0:02:26]}  axb5 {[%clk 0:02:18]} 15. Nxb5 {[%clk 0:02:26]}  Ne5 {[%clk 0:02:18]} 16. Qc2 {[%clk 0:02:19]}  Ba6 {[%clk 0:02:16]} 17. Nf3 {[%clk 0:02:10]}  Qa5 {[%clk 0:02:10]} 18. Nxe5 {[%clk 0:01:32]}  Bxe5 {[%clk 0:02:11]} 19. Ra3 {[%clk 0:01:24]}  Bxb5 {[%clk 0:02:09]} 20. axb5 {[%clk 0:01:24]}  Qxb5 {[%clk 0:02:10]} 21. Rb1 {[%clk 0:01:20]}  Rfb8 {[%clk 0:02:05]} 22. Rxa8 {[%clk 0:01:16]}  Rxa8 {[%clk 0:02:06]} 23. Bf1 {[%clk 0:01:16]}  Qb4 {[%clk 0:02:04]} 24. b3 {[%clk 0:01:13]}  Ra3 {[%clk 0:01:57]} 25. Bc4 {[%clk 0:01:12]}  Qa5 {[%clk 0:01:57]} 26. Qd1 {[%clk 0:00:43]}  Qb4 {[%clk 0:01:46]} 27. Qc2 {[%clk 0:00:38]}  Bd4 {[%clk 0:01:46]} 28. Kg2 {[%clk 0:00:34]}  Qa5 {[%clk 0:01:46]} 29. Rf1 {[%clk 0:00:30]}  Ra2 {[%clk 0:01:44]} 30. Qd3 {[%clk 0:00:30]}  Rd2 {[%clk 0:01:40]} 31. Qf3 {[%clk 0:00:30]}  Qa2 {[%clk 0:01:31]} 32. h4 {[%clk 0:00:29]}  h5 {[%clk 0:01:31]} 33. Kg1 {[%clk 0:00:28]}  Kg7 {[%clk 0:01:28]} 34. Kg2 {[%clk 0:00:28]}  Qb2 {[%clk 0:01:10]} 35. Kg1 {[%clk 0:00:28]}  Rc2 {[%clk 0:01:06]} 36. Kg2 {[%clk 0:00:28]}  Rc3 {[%clk 0:01:04]} 37. Qd1 {[%clk 0:00:24]}  Be5 {[%clk 0:00:53]} 38. Qb1 {[%clk 0:00:22]}  Rxg3+ {[%clk 0:00:52]} 39. Kh1 {[%clk 0:00:14]}  Rh3+ {[%clk 0:00:44]} 40. Kg1 {[%clk 0:00:12]}  Qc3 {[%clk 0:00:40]} 41. Rd1 {[%clk 0:00:08]}  Qf3 {[%clk 0:00:39]} 0-1


[Site "https://www.chess.com"]

[Event "Titled Tuesday Blitz June 13 Early 2023"]
[White "Manukian, Artak"]
[Black "Darini, Pouria"]
[WhiteFideId "13301373"]
[BlackFideId "12502200"]
[WhiteElo "2130"]
[BlackElo "2482"]
[Result "0-1"]
[Round "6"]
[TimeControl "180+2"]
[Date "2023.06.13"]
[WhiteClock "0:01:58"]
[BlackClock "0:01:06"]
[Board "73"]

1. e4 {[%clk 0:03:00]}  g6 {[%clk 0:02:58]} 2. d4 {[%clk 0:03:00]}  Bg7 {[%clk 0:02:59]} 3. c4 {[%clk 0:02:59]}  d6 {[%clk 0:02:55]} 4. Nc3 {[%clk 0:02:59]}  e5 {[%clk 0:02:55]} 5. d5 {[%clk 0:02:59]}  a5 {[%clk 0:02:51]} 6. Bd3 {[%clk 0:02:59]}  Na6 {[%clk 0:02:51]} 7. Nge2 {[%clk 0:02:57]}  Nc5 {[%clk 0:02:43]} 8. Bc2 {[%clk 0:02:57]}  f5 {[%clk 0:02:44]} 9. f3 {[%clk 0:02:56]}  Bh6 {[%clk 0:02:40]} 10. O-O {[%clk 0:02:54]}  Bxc1 {[%clk 0:02:40]} 11. Qxc1 {[%clk 0:02:54]}  f4 {[%clk 0:02:36]} 12. Na4 {[%clk 0:02:50]}  b6 {[%clk 0:02:13]} 13. Nxc5 {[%clk 0:02:50]}  bxc5 {[%clk 0:02:14]} 14. Ba4+ {[%clk 0:02:50]}  Bd7 {[%clk 0:02:09]} 15. Bxd7+ {[%clk 0:02:49]}  Qxd7 {[%clk 0:02:09]} 16. Nc3 {[%clk 0:02:48]}  Nf6 {[%clk 0:02:08]} 17. b3 {[%clk 0:02:46]}  g5 {[%clk 0:02:08]} 18. h3 {[%clk 0:02:45]}  h5 {[%clk 0:02:08]} 19. Kf2 {[%clk 0:02:43]}  g4 {[%clk 0:02:03]} 20. hxg4 {[%clk 0:02:43]}  hxg4 {[%clk 0:02:04]} 21. Rh1 {[%clk 0:02:42]}  Ke7 {[%clk 0:01:49]} 22. Ke2 {[%clk 0:02:40]}  Rag8 {[%clk 0:01:47]} 23. Rxh8 {[%clk 0:02:34]}  Rxh8 {[%clk 0:01:46]} 24. Qd1 {[%clk 0:02:28]}  Rh2 {[%clk 0:01:43]} 25. Qg1 {[%clk 0:02:27]}  gxf3+ {[%clk 0:01:35]} 26. Kd3 {[%clk 0:02:27]}  Rxg2 {[%clk 0:01:33]} 27. Qh1 {[%clk 0:02:27]}  Qg4 {[%clk 0:01:16]} 28. Qh8 {[%clk 0:02:13]}  f2 {[%clk 0:01:16]} 29. Rf1 {[%clk 0:02:10]}  Rg1 {[%clk 0:01:06]} 30. Rxf2 {[%clk 0:01:58]}  Qg3+ {[%clk 0:01:06]} 0-1


[Site "https://www.chess.com"]

[Event "Titled Tuesday Blitz June 13 Early 2023"]
[White "Souleidis, Georgios"]
[Black "Perera Alfonso, Rene Humberto"]
[WhiteFideId "4206827"]
[BlackFideId "3514722"]
[WhiteElo "2401"]
[BlackElo "2313"]
[Result "1-0"]
[Round "6"]
[TimeControl "180+2"]
[Date "2023.06.13"]
[WhiteClock "0:02:19"]
[BlackClock "0:02:21"]
[Board "74"]

1. e4 {[%clk 0:03:00]}  c5 {[%clk 0:02:59]} 2. Be2 {[%clk 0:03:00]}  Nc6 {[%clk 0:02:56]} 3. d3 {[%clk 0:03:00]}  g6 {[%clk 0:02:56]} 4. f4 {[%clk 0:03:00]}  Bg7 {[%clk 0:02:57]} 5. Nf3 {[%clk 0:03:01]}  e6 {[%clk 0:02:57]} 6. O-O {[%clk 0:03:02]}  Nge7 {[%clk 0:02:57]} 7. c3 {[%clk 0:03:02]}  d5 {[%clk 0:02:56]} 8. Na3 {[%clk 0:03:02]}  O-O {[%clk 0:02:56]} 9. Nc2 {[%clk 0:03:02]}  b5 {[%clk 0:02:55]} 10. a3 {[%clk 0:03:00]}  a5 {[%clk 0:02:54]} 11. e5 {[%clk 0:03:00]}  Ba6 {[%clk 0:02:52]} 12. d4 {[%clk 0:03:00]}  cxd4 {[%clk 0:02:49]} 13. Ncxd4 {[%clk 0:02:59]}  Qb6 {[%clk 0:02:44]} 14. Be3 {[%clk 0:02:56]}  Qb7 {[%clk 0:02:44]} 15. b4 {[%clk 0:02:49]}  Rfc8 {[%clk 0:02:39]} 16. Qd2 {[%clk 0:02:48]}  Nxd4 {[%clk 0:02:33]} 17. Nxd4 {[%clk 0:02:46]}  Rc7 {[%clk 0:02:33]} 18. g4 {[%clk 0:02:43]}  Rac8 {[%clk 0:02:34]} 19. Rac1 {[%clk 0:02:43]}  Nc6 {[%clk 0:02:31]} 20. Nxc6 {[%clk 0:02:39]}  Qxc6 {[%clk 0:02:31]} 21. Bd4 {[%clk 0:02:40]}  axb4 {[%clk 0:02:30]} 22. axb4 {[%clk 0:02:37]}  Bf8 {[%clk 0:02:29]} 23. f5 {[%clk 0:02:21]}  Bxb4 {[%clk 0:02:25]} 24. cxb4 {[%clk 0:02:21]}  Qxc1 {[%clk 0:02:26]} 25. Rxc1 {[%clk 0:02:22]}  Rxc1+ {[%clk 0:02:21]} 26. Kf2 {[%clk 0:02:19]} 1-0


[Site "https://www.chess.com"]

[Event "Titled Tuesday Blitz June 13 Early 2023"]
[White "Koshulyan, Egor A."]
[Black "Toncheva, Nadya"]
[WhiteFideId "24237000"]
[BlackFideId "2924056"]
[WhiteElo "2216"]
[BlackElo "2101"]
[Result "0-1"]
[Round "6"]
[TimeControl "180+2"]
[Date "2023.06.13"]
[WhiteClock "0:00:33"]
[BlackClock "0:00:23"]
[Board "75"]

1. e4 {[%clk 0:02:59]}  c5 {[%clk 0:03:00]} 2. Nf3 {[%clk 0:02:59]}  Nc6 {[%clk 0:03:00]} 3. d4 {[%clk 0:02:59]}  cxd4 {[%clk 0:03:01]} 4. Nxd4 {[%clk 0:03:00]}  g6 {[%clk 0:03:02]} 5. Nc3 {[%clk 0:03:00]}  Bg7 {[%clk 0:03:02]} 6. Be3 {[%clk 0:03:01]}  Nf6 {[%clk 0:03:03]} 7. Bc4 {[%clk 0:03:00]}  O-O {[%clk 0:03:03]} 8. Bb3 {[%clk 0:03:00]}  d6 {[%clk 0:03:04]} 9. f3 {[%clk 0:02:58]}  Bd7 {[%clk 0:03:04]} 10. Qd2 {[%clk 0:02:59]}  Rc8 {[%clk 0:03:05]} 11. O-O-O {[%clk 0:03:00]}  Na5 {[%clk 0:03:06]} 12. h4 {[%clk 0:03:00]}  h5 {[%clk 0:03:05]} 13. Bh6 {[%clk 0:02:55]}  Nc4 {[%clk 0:03:05]} 14. Bxc4 {[%clk 0:02:55]}  Rxc4 {[%clk 0:03:06]} 15. Bxg7 {[%clk 0:02:55]}  Kxg7 {[%clk 0:03:06]} 16. g4 {[%clk 0:02:56]}  Rh8 {[%clk 0:03:02]} 17. g5 {[%clk 0:02:54]}  Ne8 {[%clk 0:03:02]} 18. f4 {[%clk 0:02:54]}  Bg4 {[%clk 0:02:56]} 19. Rdf1 {[%clk 0:02:51]}  Qb6 {[%clk 0:02:43]} 20. Nb3 {[%clk 0:02:50]}  Nc7 {[%clk 0:02:36]} 21. f5 {[%clk 0:02:40]}  Rf8 {[%clk 0:01:46]} 22. f6+ {[%clk 0:02:39]}  exf6 {[%clk 0:01:43]} 23. gxf6+ {[%clk 0:02:37]}  Kh7 {[%clk 0:01:43]} 24. Rf4 {[%clk 0:01:48]}  Be6 {[%clk 0:01:36]} 25. Rf3 {[%clk 0:01:36]}  Nb5 {[%clk 0:01:28]} 26. Nxb5 {[%clk 0:01:31]}  Qxb5 {[%clk 0:01:29]} 27. Qxd6 {[%clk 0:01:31]}  Rfc8 {[%clk 0:01:07]} 28. Kb1 {[%clk 0:01:14]}  Rxc2 {[%clk 0:01:02]} 29. Qd3 {[%clk 0:00:52]}  Qxd3 {[%clk 0:00:48]} 30. Rxd3 {[%clk 0:00:53]}  Rf2 {[%clk 0:00:48]} 31. Nd4 {[%clk 0:00:51]}  Rxf6 {[%clk 0:00:37]} 32. Nf3 {[%clk 0:00:39]}  Bg4 {[%clk 0:00:35]} 33. Ng5+ {[%clk 0:00:40]}  Kg7 {[%clk 0:00:35]} 34. Rb3 {[%clk 0:00:39]}  Rc7 {[%clk 0:00:32]} 35. e5 {[%clk 0:00:39]}  Rf2 {[%clk 0:00:31]} 36. Re1 {[%clk 0:00:40]}  Bf5+ {[%clk 0:00:30]} 37. Ka1 {[%clk 0:00:38]}  Re2 {[%clk 0:00:28]} 38. Rd1 {[%clk 0:00:38]}  Rxe5 {[%clk 0:00:28]} 39. Rb4 {[%clk 0:00:34]}  Rec5 {[%clk 0:00:24]} 40. a4 {[%clk 0:00:32]}  Rc1+ {[%clk 0:00:24]} 41. Rxc1 {[%clk 0:00:32]}  Rxc1+ {[%clk 0:00:25]} 42. Ka2 {[%clk 0:00:33]}  Rc7 {[%clk 0:00:23]} 43. Re4 {[%clk 0:00:33]} 0-1


[Site "https://www.chess.com"]

[Event "Titled Tuesday Blitz June 13 Early 2023"]
[White "De Silva, L M S T"]
[Black "Ciorgovean, Iustin"]
[WhiteFideId "9953698"]
[BlackFideId "1242911"]
[WhiteElo "2395"]
[BlackElo "2186"]
[Result "1/2-1/2"]
[Round "6"]
[TimeControl "180+2"]
[Date "2023.06.13"]
[WhiteClock "0:01:03"]
[BlackClock "0:00:26"]
[Board "77"]

1. e4 {[%clk 0:02:55]}  e5 {[%clk 0:02:55]} 2. Nc3 {[%clk 0:02:55]}  Nf6 {[%clk 0:02:54]} 3. Bc4 {[%clk 0:02:55]}  Bb4 {[%clk 0:02:53]} 4. Nge2 {[%clk 0:02:54]}  O-O {[%clk 0:02:52]} 5. O-O {[%clk 0:02:54]}  d6 {[%clk 0:02:49]} 6. d3 {[%clk 0:02:52]}  c6 {[%clk 0:02:44]} 7. f4 {[%clk 0:02:52]}  Nbd7 {[%clk 0:02:44]} 8. Ng3 {[%clk 0:02:48]}  b5 {[%clk 0:02:36]} 9. Bb3 {[%clk 0:02:47]}  Nc5 {[%clk 0:02:31]} 10. fxe5 {[%clk 0:02:46]}  dxe5 {[%clk 0:02:29]} 11. Bg5 {[%clk 0:02:46]}  Nxb3 {[%clk 0:02:27]} 12. Bxf6 {[%clk 0:02:43]}  gxf6 {[%clk 0:02:28]} 13. axb3 {[%clk 0:02:42]}  Kh8 {[%clk 0:02:16]} 14. Nh5 {[%clk 0:02:40]}  Be7 {[%clk 0:02:14]} 15. Qf3 {[%clk 0:02:38]}  Be6 {[%clk 0:02:03]} 16. Nxf6 {[%clk 0:02:37]}  Bxf6 {[%clk 0:02:04]} 17. Qxf6+ {[%clk 0:02:38]}  Qxf6 {[%clk 0:02:04]} 18. Rxf6 {[%clk 0:02:39]}  a5 {[%clk 0:02:02]} 19. Rff1 {[%clk 0:02:28]}  Kg7 {[%clk 0:02:02]} 20. Nd1 {[%clk 0:02:27]}  f5 {[%clk 0:01:53]} 21. exf5 {[%clk 0:02:28]}  Rxf5 {[%clk 0:01:52]} 22. Rxf5 {[%clk 0:02:28]}  Bxf5 {[%clk 0:01:53]} 23. Ne3 {[%clk 0:02:29]}  Be6 {[%clk 0:01:53]} 24. Kf2 {[%clk 0:02:28]}  a4 {[%clk 0:01:50]} 25. Ke2 {[%clk 0:02:27]}  Rb8 {[%clk 0:01:46]} 26. bxa4 {[%clk 0:02:21]}  bxa4 {[%clk 0:01:47]} 27. Nd1 {[%clk 0:02:21]}  Bg4+ {[%clk 0:01:36]} 28. Kd2 {[%clk 0:02:19]}  Bxd1 {[%clk 0:01:35]} 29. Kxd1 {[%clk 0:02:18]}  Rxb2 {[%clk 0:01:36]} 30. Rxa4 {[%clk 0:02:19]}  Rb1+ {[%clk 0:01:36]} 31. Kd2 {[%clk 0:02:19]}  Rh1 {[%clk 0:01:36]} 32. h3 {[%clk 0:02:18]}  Rg1 {[%clk 0:01:35]} 33. Rg4+ {[%clk 0:02:19]}  Kf6 {[%clk 0:01:35]} 34. c4 {[%clk 0:02:10]}  h5 {[%clk 0:01:32]} 35. Rg3 {[%clk 0:02:08]}  c5 {[%clk 0:01:30]} 36. Ke3 {[%clk 0:02:03]}  Re1+ {[%clk 0:01:21]} 37. Kf2 {[%clk 0:02:02]}  Rd1 {[%clk 0:01:21]} 38. Rf3+ {[%clk 0:02:02]}  Ke6 {[%clk 0:01:19]} 39. Kg3 {[%clk 0:01:56]}  Rg1 {[%clk 0:01:16]} 40. Kh2 {[%clk 0:01:51]}  Rd1 {[%clk 0:01:14]} 41. g4 {[%clk 0:01:51]}  hxg4 {[%clk 0:01:14]} 42. hxg4 {[%clk 0:01:52]}  e4 {[%clk 0:01:13]} 43. dxe4 {[%clk 0:01:37]}  Rd4 {[%clk 0:01:07]} 44. g5 {[%clk 0:01:12]}  Rxe4 {[%clk 0:01:05]} 45. g6 {[%clk 0:01:12]}  Rxc4 {[%clk 0:00:33]} 46. Rg3 {[%clk 0:01:11]}  Rh4+ {[%clk 0:00:27]} 47. Kg2 {[%clk 0:01:09]}  Rh8 {[%clk 0:00:27]} 48. g7 {[%clk 0:01:04]}  Rg8 {[%clk 0:00:26]} 49. Rg5 {[%clk 0:01:03]} 1/2-1/2


[Site "https://www.chess.com"]

[Event "Titled Tuesday Blitz June 13 Early 2023"]
[White "Veiga, Jose Francisco R P Neves"]
[Black "Berezin, Viktor"]
[WhiteFideId "1930087"]
[BlackFideId "14107872"]
[WhiteElo "2319"]
[BlackElo "2310"]
[Result "1-0"]
[Round "6"]
[TimeControl "180+2"]
[Date "2023.06.13"]
[WhiteClock "0:01:21"]
[BlackClock "0:00:14"]
[Board "78"]

1. c4 {[%clk 0:03:00]}  Nf6 {[%clk 0:02:55]} 2. Nc3 {[%clk 0:03:00]}  g6 {[%clk 0:02:50]} 3. e4 {[%clk 0:03:00]}  d6 {[%clk 0:02:50]} 4. g3 {[%clk 0:03:00]}  Bg7 {[%clk 0:02:50]} 5. Bg2 {[%clk 0:03:00]}  O-O {[%clk 0:02:51]} 6. Nge2 {[%clk 0:03:01]}  Nc6 {[%clk 0:02:51]} 7. d4 {[%clk 0:03:01]}  e5 {[%clk 0:02:49]} 8. d5 {[%clk 0:02:58]}  Na5 {[%clk 0:02:36]} 9. Qd3 {[%clk 0:02:52]}  c5 {[%clk 0:02:36]} 10. O-O {[%clk 0:02:48]}  a6 {[%clk 0:02:34]} 11. f4 {[%clk 0:02:35]}  exf4 {[%clk 0:02:30]} 12. Bxf4 {[%clk 0:02:34]}  b5 {[%clk 0:02:25]} 13. cxb5 {[%clk 0:02:31]}  axb5 {[%clk 0:02:20]} 14. Nxb5 {[%clk 0:02:31]}  Qb6 {[%clk 0:02:11]} 15. a4 {[%clk 0:02:27]}  Ng4 {[%clk 0:02:05]} 16. Qc2 {[%clk 0:02:12]}  Ne5 {[%clk 0:01:44]} 17. Kh1 {[%clk 0:02:06]}  Bd7 {[%clk 0:01:42]} 18. Nec3 {[%clk 0:02:03]}  f5 {[%clk 0:01:33]} 19. Rae1 {[%clk 0:01:54]}  Nb7 {[%clk 0:01:25]} 20. b3 {[%clk 0:01:53]}  Rae8 {[%clk 0:01:17]} 21. Bh3 {[%clk 0:01:46]}  fxe4 {[%clk 0:00:44]} 22. Bxd7 {[%clk 0:01:41]}  Nxd7 {[%clk 0:00:45]} 23. Nxe4 {[%clk 0:01:39]}  Be5 {[%clk 0:00:37]} 24. Bh6 {[%clk 0:01:35]}  Rxf1+ {[%clk 0:00:35]} 25. Rxf1 {[%clk 0:01:36]}  Bg7 {[%clk 0:00:28]} 26. Bxg7 {[%clk 0:01:34]}  Kxg7 {[%clk 0:00:29]} 27. Ng5 {[%clk 0:01:30]}  Ne5 {[%clk 0:00:20]} 28. Ne6+ {[%clk 0:01:29]}  Kg8 {[%clk 0:00:20]} 29. Qf2 {[%clk 0:01:23]}  h5 {[%clk 0:00:14]} 30. Qf6 {[%clk 0:01:21]} 1-0


[Site "https://www.chess.com"]

[Event "Titled Tuesday Blitz June 13 Early 2023"]
[White "Zochowski, Kacper"]
[Black "Ginzburg, Yakov"]
[WhiteFideId "1125494"]
[BlackFideId "4157176"]
[WhiteElo "2235"]
[BlackElo "2305"]
[Result "0-1"]
[Round "6"]
[TimeControl "180+2"]
[Date "2023.06.13"]
[WhiteClock "0:00:00"]
[BlackClock "0:00:05"]
[Board "79"]

1. Nf3 {[%clk 0:03:00]}  Nf6 {[%clk 0:02:58]} 2. c4 {[%clk 0:03:01]}  c6 {[%clk 0:02:58]} 3. e3 {[%clk 0:02:59]}  d5 {[%clk 0:02:58]} 4. Nc3 {[%clk 0:03:00]}  a6 {[%clk 0:02:58]} 5. b3 {[%clk 0:02:59]}  b5 {[%clk 0:02:58]} 6. Bb2 {[%clk 0:03:00]}  Bg4 {[%clk 0:02:57]} 7. Be2 {[%clk 0:03:00]}  e6 {[%clk 0:02:56]} 8. O-O {[%clk 0:03:00]}  Nbd7 {[%clk 0:02:55]} 9. h3 {[%clk 0:03:01]}  Bh5 {[%clk 0:02:55]} 10. d3 {[%clk 0:02:55]}  Bd6 {[%clk 0:02:54]} 11. e4 {[%clk 0:02:54]}  b4 {[%clk 0:02:47]} 12. Na4 {[%clk 0:02:52]}  dxe4 {[%clk 0:02:46]} 13. dxe4 {[%clk 0:02:53]}  Nxe4 {[%clk 0:02:40]} 14. Nd4 {[%clk 0:02:51]}  Bxe2 {[%clk 0:02:31]} 15. Qxe2 {[%clk 0:02:52]}  Ndf6 {[%clk 0:02:19]} 16. Nxc6 {[%clk 0:02:41]}  Qc7 {[%clk 0:02:18]} 17. c5 {[%clk 0:02:11]}  Bh2+ {[%clk 0:02:08]} 18. Kh1 {[%clk 0:02:09]}  Qxc6 {[%clk 0:01:52]} 19. Kxh2 {[%clk 0:02:07]}  O-O {[%clk 0:01:52]} 20. Rad1 {[%clk 0:02:01]}  Rad8 {[%clk 0:01:50]} 21. Kg1 {[%clk 0:02:00]}  Rd5 {[%clk 0:00:56]} 22. Rxd5 {[%clk 0:01:58]}  exd5 {[%clk 0:00:56]} 23. Qe3 {[%clk 0:01:56]}  Re8 {[%clk 0:00:48]} 24. Qd4 {[%clk 0:01:55]}  Ng5 {[%clk 0:00:36]} 25. Qf4 {[%clk 0:01:41]}  Ne6 {[%clk 0:00:35]} 26. Qg3 {[%clk 0:01:26]}  Ne4 {[%clk 0:00:33]} 27. Qe3 {[%clk 0:01:25]}  f6 {[%clk 0:00:18]} 28. Rc1 {[%clk 0:01:23]}  a5 {[%clk 0:00:17]} 29. f3 {[%clk 0:01:22]}  Ng3 {[%clk 0:00:15]} 30. Qf2 {[%clk 0:01:20]}  Nf4 {[%clk 0:00:15]} 31. Kh2 {[%clk 0:01:19]}  Nge2 {[%clk 0:00:06]} 32. Rd1 {[%clk 0:01:19]}  Qc7 {[%clk 0:00:06]} 33. g3 {[%clk 0:01:20]}  Nxg3 {[%clk 0:00:05]} 34. Kxg3 {[%clk 0:01:17]}  Nd3+ {[%clk 0:00:05]} 35. Kg2 {[%clk 0:01:18]}  Nxf2 {[%clk 0:00:06]} 36. Rxd5 {[%clk 0:01:15]}  Nd3 {[%clk 0:00:05]} 37. Rxd3 {[%clk 0:01:13]}  Re2+ {[%clk 0:00:05]} 38. Kf1 {[%clk 0:00:00]}  Qh2 {[%clk 0:00:05]} 0-1


[Site "https://www.chess.com"]

[Event "Titled Tuesday Blitz June 13 Early 2023"]
[White "Vlassov, Nikolai"]
[Black "Turzo, Attila"]
[WhiteFideId "4103360"]
[BlackFideId "704954"]
[WhiteElo "2324"]
[BlackElo "2499"]
[Result "1-0"]
[Round "6"]
[TimeControl "180+2"]
[Date "2023.06.13"]
[WhiteClock "0:00:54"]
[BlackClock "0:00:57"]
[Board "83"]

1. e4 {[%clk 0:03:00]}  d6 {[%clk 0:02:49]} 2. f4 {[%clk 0:03:00]}  g6 {[%clk 0:02:49]} 3. Nc3 {[%clk 0:03:00]}  Bg7 {[%clk 0:02:50]} 4. Nf3 {[%clk 0:02:59]}  Nf6 {[%clk 0:02:48]} 5. e5 {[%clk 0:02:58]}  dxe5 {[%clk 0:02:40]} 6. fxe5 {[%clk 0:02:58]}  Nd5 {[%clk 0:02:41]} 7. Bc4 {[%clk 0:02:57]}  Nxc3 {[%clk 0:02:39]} 8. bxc3 {[%clk 0:02:56]}  O-O {[%clk 0:02:39]} 9. O-O {[%clk 0:02:55]}  c5 {[%clk 0:02:29]} 10. d4 {[%clk 0:02:54]}  Nc6 {[%clk 0:02:22]} 11. Be3 {[%clk 0:02:52]}  Na5 {[%clk 0:02:12]} 12. Be2 {[%clk 0:02:44]}  Be6 {[%clk 0:02:09]} 13. Qe1 {[%clk 0:02:34]}  f6 {[%clk 0:01:58]} 14. dxc5 {[%clk 0:02:20]}  Nc4 {[%clk 0:01:50]} 15. Bxc4 {[%clk 0:01:48]}  Bxc4 {[%clk 0:01:49]} 16. Rf2 {[%clk 0:01:49]}  fxe5 {[%clk 0:01:47]} 17. Rd2 {[%clk 0:01:43]}  Qc7 {[%clk 0:01:39]} 18. Qh4 {[%clk 0:01:40]}  Rad8 {[%clk 0:01:26]} 19. Qxc4+ {[%clk 0:01:39]}  Kh8 {[%clk 0:01:18]} 20. Ng5 {[%clk 0:01:30]}  Rxd2 {[%clk 0:01:16]} 21. Bxd2 {[%clk 0:01:29]}  e6 {[%clk 0:01:16]} 22. Nxe6 {[%clk 0:01:19]}  Qf7 {[%clk 0:01:15]} 23. Rf1 {[%clk 0:01:19]}  Qxf1+ {[%clk 0:01:13]} 24. Qxf1 {[%clk 0:01:18]}  Rxf1+ {[%clk 0:01:13]} 25. Kxf1 {[%clk 0:01:18]}  Kg8 {[%clk 0:01:14]} 26. Nxg7 {[%clk 0:01:17]}  Kxg7 {[%clk 0:01:14]} 27. Ke2 {[%clk 0:01:17]}  Kf6 {[%clk 0:01:14]} 28. Kf3 {[%clk 0:01:17]}  Kf5 {[%clk 0:01:15]} 29. g4+ {[%clk 0:01:17]}  Ke6 {[%clk 0:01:15]} 30. Ke4 {[%clk 0:01:18]}  h5 {[%clk 0:01:14]} 31. gxh5 {[%clk 0:01:13]}  gxh5 {[%clk 0:01:15]} 32. Be1 {[%clk 0:01:14]}  a6 {[%clk 0:01:13]} 33. Bg3 {[%clk 0:01:14]}  a5 {[%clk 0:01:11]} 34. Bxe5 {[%clk 0:01:13]}  a4 {[%clk 0:01:11]} 35. c4 {[%clk 0:01:13]}  h4 {[%clk 0:01:11]} 36. Bf4 {[%clk 0:01:13]}  h3 {[%clk 0:01:11]} 37. Bg3 {[%clk 0:01:09]}  Kd7 {[%clk 0:01:10]} 38. Kd5 {[%clk 0:01:09]}  a3 {[%clk 0:01:10]} 39. Bf4 {[%clk 0:01:07]}  Kc8 {[%clk 0:01:10]} 40. Bc1 {[%clk 0:01:07]}  Kb8 {[%clk 0:01:08]} 41. Bxa3 {[%clk 0:01:07]}  Ka7 {[%clk 0:01:09]} 42. Bc1 {[%clk 0:01:06]}  Ka6 {[%clk 0:01:09]} 43. Bd2 {[%clk 0:01:00]}  Ka7 {[%clk 0:01:06]} 44. Ke4 {[%clk 0:00:57]}  Kb8 {[%clk 0:01:06]} 45. Kf3 {[%clk 0:00:58]}  Kc7 {[%clk 0:01:06]} 46. Kg3 {[%clk 0:00:57]}  Kc6 {[%clk 0:01:07]} 47. Be3 {[%clk 0:00:57]}  b5 {[%clk 0:01:05]} 48. cxb6 {[%clk 0:00:56]}  Kb7 {[%clk 0:01:05]} 49. Kxh3 {[%clk 0:00:55]}  Ka6 {[%clk 0:00:57]} 50. Kg4 {[%clk 0:00:54]} 1-0


[Site "https://www.chess.com"]